[Event "Titled Tuesday Blitz August 22 Early 2023"]
[White "Vakhlamov, Igor L."]
[Black "Maltsevskaya, Aleksandra"]
[WhiteFideId "24126748"]
[BlackFideId "24174041"]
[WhiteElo "2801"]
[BlackElo "2628"]
[Result "1/2-1/2"]
[Round "5"]
[TimeControl "180+1"]
[Date "2023.08.22"]
[WhiteClock "0:00:05"]
[BlackClock "0:00:05"]
[Board "47"]

1. e4 {[%clk 0:03:00]}  c5 {[%clk 0:02:43]} 2. Nf3 {[%clk 0:03:00]}  e6 {[%clk 0:02:40]} 3. Nc3 {[%clk 0:03:00]}  Nc6 {[%clk 0:02:40]} 4. d4 {[%clk 0:03:01]}  cxd4 {[%clk 0:02:41]} 5. Nxd4 {[%clk 0:03:01]}  Nf6 {[%clk 0:02:42]} 6. Nxc6 {[%clk 0:03:02]}  bxc6 {[%clk 0:02:43]} 7. Bd3 {[%clk 0:03:02]}  d5 {[%clk 0:02:42]} 8. O-O {[%clk 0:03:02]}  Be7 {[%clk 0:02:42]} 9. Re1 {[%clk 0:03:03]}  O-O {[%clk 0:02:43]} 10. Qf3 {[%clk 0:03:04]}  a5 {[%clk 0:02:36]} 11. b3 {[%clk 0:03:03]}  Ba6 {[%clk 0:02:35]} 12. Bb2 {[%clk 0:03:02]}  Bxd3 {[%clk 0:02:34]} 13. Qxd3 {[%clk 0:02:50]}  Nd7 {[%clk 0:02:34]} 14. Rad1 {[%clk 0:02:47]}  Bf6 {[%clk 0:02:34]} 15. Qg3 {[%clk 0:02:26]}  d4 {[%clk 0:02:17]} 16. Na4 {[%clk 0:02:16]}  e5 {[%clk 0:02:15]} 17. Ba3 {[%clk 0:02:14]}  Re8 {[%clk 0:02:07]} 18. Nb2 {[%clk 0:02:15]}  a4 {[%clk 0:02:06]} 19. Nc4 {[%clk 0:02:15]}  axb3 {[%clk 0:02:04]} 20. axb3 {[%clk 0:02:16]}  Nb6 {[%clk 0:02:01]} 21. Nxb6 {[%clk 0:02:10]}  Qxb6 {[%clk 0:01:59]} 22. Ra1 {[%clk 0:02:08]}  c5 {[%clk 0:01:47]} 23. Qd3 {[%clk 0:02:03]}  c4 {[%clk 0:01:16]} 24. bxc4 {[%clk 0:01:35]}  Qc6 {[%clk 0:01:10]} 25. Rab1 {[%clk 0:01:26]}  Be7 {[%clk 0:01:02]} 26. Bxe7 {[%clk 0:01:23]}  Rxe7 {[%clk 0:01:03]} 27. Rb5 {[%clk 0:01:23]}  h6 {[%clk 0:00:56]} 28. g3 {[%clk 0:01:17]}  Ra2 {[%clk 0:00:34]} 29. Reb1 {[%clk 0:01:15]}  Kh7 {[%clk 0:00:32]} 30. c5 {[%clk 0:01:03]}  Rea7 {[%clk 0:00:27]} 31. h4 {[%clk 0:00:43]}  R7a3 {[%clk 0:00:20]} 32. R1b3 {[%clk 0:00:38]}  Ra1+ {[%clk 0:00:15]} 33. Kh2 {[%clk 0:00:35]}  Rxb3 {[%clk 0:00:15]} 34. cxb3 {[%clk 0:00:28]}  Rc1 {[%clk 0:00:09]} 35. Rb8 {[%clk 0:00:11]}  Rc3 {[%clk 0:00:02]} 36. Qb5 {[%clk 0:00:07]}  Qf6 {[%clk 0:00:03]} 37. Qe2 {[%clk 0:00:07]}  d3 {[%clk 0:00:02]} 38. Qe3 {[%clk 0:00:06]}  Rc2 {[%clk 0:00:02]} 39. Kg2 {[%clk 0:00:06]}  Re2 {[%clk 0:00:03]} 40. Qf3 {[%clk 0:00:06]}  Qxf3+ {[%clk 0:00:02]} 41. Kxf3 {[%clk 0:00:06]}  Rc2 {[%clk 0:00:02]} 42. Rd8 {[%clk 0:00:07]}  Rxc5 {[%clk 0:00:02]} 43. Rxd3 {[%clk 0:00:07]}  Rb5 {[%clk 0:00:03]} 44. Ke3 {[%clk 0:00:07]}  Kg6 {[%clk 0:00:03]} 45. g4 {[%clk 0:00:07]}  h5 {[%clk 0:00:03]} 46. g5 {[%clk 0:00:07]}  f6 {[%clk 0:00:03]} 47. gxf6 {[%clk 0:00:07]}  gxf6 {[%clk 0:00:04]} 48. Kd2 {[%clk 0:00:07]}  f5 {[%clk 0:00:04]} 49. Rg3+ {[%clk 0:00:06]}  Kf6 {[%clk 0:00:04]} 50. Rg5 {[%clk 0:00:07]}  fxe4 {[%clk 0:00:04]} 51. Rxh5 {[%clk 0:00:06]}  Rxb3 {[%clk 0:00:04]} 52. Rh8 {[%clk 0:00:07]}  Rh3 {[%clk 0:00:03]} 53. Ke2 {[%clk 0:00:07]}  Kf5 {[%clk 0:00:03]} 54. h5 {[%clk 0:00:06]}  Kg5 {[%clk 0:00:04]} 55. Re8 {[%clk 0:00:06]}  e3 {[%clk 0:00:02]} 56. Rxe5+ {[%clk 0:00:05]}  Kf4 {[%clk 0:00:02]} 57. Rxe3 {[%clk 0:00:06]}  Rxh5 {[%clk 0:00:02]} 58. Re8 {[%clk 0:00:05]}  Rf5 {[%clk 0:00:01]} 59. f3 {[%clk 0:00:04]}  Rb5 {[%clk 0:00:02]} 60. Re4+ {[%clk 0:00:03]}  Kf5 {[%clk 0:00:02]} 61. Kf2 {[%clk 0:00:04]}  Rb2+ {[%clk 0:00:02]} 62. Kg3 {[%clk 0:00:05]}  Rb1 {[%clk 0:00:03]} 63. Re8 {[%clk 0:00:05]}  Rg1+ {[%clk 0:00:03]} 64. Kf2 {[%clk 0:00:05]}  Rb1 {[%clk 0:00:04]} 65. Rf8+ {[%clk 0:00:06]}  Kg5 {[%clk 0:00:04]} 66. Kg3 {[%clk 0:00:06]}  Rg1+ {[%clk 0:00:04]} 67. Kh3 {[%clk 0:00:07]}  Rb1 {[%clk 0:00:05]} 68. Rf7 {[%clk 0:00:06]}  Kg6 {[%clk 0:00:05]} 69. Rf4 {[%clk 0:00:05]}  Kg5 {[%clk 0:00:06]} 70. Ra4 {[%clk 0:00:06]}  Kf5 {[%clk 0:00:05]} 71. Kg3 {[%clk 0:00:06]}  Rb5 {[%clk 0:00:05]} 72. Rf4+ {[%clk 0:00:05]}  Kg5 {[%clk 0:00:05]} 73. Rg4+ {[%clk 0:00:05]}  Kf5 {[%clk 0:00:06]} 74. Rh4 {[%clk 0:00:06]}  Kg5 {[%clk 0:00:06]} 75. f4+ {[%clk 0:00:07]}  Kg6 {[%clk 0:00:06]} 76. Kg4 {[%clk 0:00:08]}  Rb1 {[%clk 0:00:05]} 77. Rh3 {[%clk 0:00:08]}  Rg1+ {[%clk 0:00:05]} 78. Kf3 {[%clk 0:00:08]}  Rf1+ {[%clk 0:00:04]} 79. Ke4 {[%clk 0:00:08]}  Re1+ {[%clk 0:00:04]} 80. Kd4 {[%clk 0:00:08]}  Kf5 {[%clk 0:00:04]} 81. Rh4 {[%clk 0:00:05]}  Re4+ {[%clk 0:00:03]} 82. Kd3 {[%clk 0:00:05]}  Rxf4 {[%clk 0:00:04]} 83. Rh5+ {[%clk 0:00:04]}  Kf6 {[%clk 0:00:04]} 84. Rh8 {[%clk 0:00:04]}  Ke5 {[%clk 0:00:04]} 85. Re8+ {[%clk 0:00:03]}  Kd6 {[%clk 0:00:04]} 86. Rd8+ {[%clk 0:00:04]}  Ke5 {[%clk 0:00:04]} 87. Re8+ {[%clk 0:00:04]}  Kd5 {[%clk 0:00:05]} 88. Rd8+ {[%clk 0:00:04]}  Ke5 {[%clk 0:00:05]} 89. Re8+ {[%clk 0:00:05]} 1/2-1/2


[Site "https://www.chess.com"]

[Event "Titled Tuesday Blitz August 22 Early 2023"]
[White "Tologon tegin, Semetei"]
[Black "Gorovets, Andrey"]
[WhiteFideId "13800574"]
[BlackFideId "13504037"]
[WhiteElo "2627"]
[BlackElo "2794"]
[Result "0-1"]
[Round "5"]
[TimeControl "180+1"]
[Date "2023.08.22"]
[WhiteClock "0:00:00"]
[BlackClock "0:00:20"]
[Board "48"]

1. e4 {[%clk 0:02:52]}  c5 {[%clk 0:03:00]} 2. Nf3 {[%clk 0:02:50]}  Nc6 {[%clk 0:03:00]} 3. d4 {[%clk 0:02:49]}  cxd4 {[%clk 0:03:01]} 4. Nxd4 {[%clk 0:02:49]}  Nf6 {[%clk 0:03:02]} 5. Nc3 {[%clk 0:02:49]}  e5 {[%clk 0:03:02]} 6. Ndb5 {[%clk 0:02:49]}  d6 {[%clk 0:03:02]} 7. Bg5 {[%clk 0:02:47]}  a6 {[%clk 0:03:02]} 8. Na3 {[%clk 0:02:47]}  Be6 {[%clk 0:03:03]} 9. Nc4 {[%clk 0:02:45]}  Rb8 {[%clk 0:03:03]} 10. Ne3 {[%clk 0:02:43]}  Be7 {[%clk 0:03:03]} 11. Bxf6 {[%clk 0:02:38]}  Bxf6 {[%clk 0:03:03]} 12. Ncd5 {[%clk 0:02:38]}  Bg5 {[%clk 0:03:02]} 13. c3 {[%clk 0:02:36]}  g6 {[%clk 0:03:00]} 14. a4 {[%clk 0:02:23]}  O-O {[%clk 0:02:55]} 15. Be2 {[%clk 0:02:12]}  f5 {[%clk 0:02:51]} 16. Bf3 {[%clk 0:02:03]}  Bxe3 {[%clk 0:02:22]} 17. Nxe3 {[%clk 0:01:54]}  Ne7 {[%clk 0:02:23]} 18. Qd2 {[%clk 0:01:34]}  f4 {[%clk 0:02:11]} 19. Nc2 {[%clk 0:01:19]}  d5 {[%clk 0:02:08]} 20. Nb4 {[%clk 0:01:13]}  dxe4 {[%clk 0:02:02]} 21. Bxe4 {[%clk 0:01:02]}  Qxd2+ {[%clk 0:01:44]} 22. Kxd2 {[%clk 0:01:03]}  Rfd8+ {[%clk 0:01:38]} 23. Kc2 {[%clk 0:01:03]}  Kf7 {[%clk 0:01:35]} 24. a5 {[%clk 0:00:47]}  Bf5 {[%clk 0:01:28]} 25. Rhe1 {[%clk 0:00:47]}  Kf6 {[%clk 0:01:15]} 26. Re2 {[%clk 0:00:43]}  g5 {[%clk 0:01:07]} 27. Rae1 {[%clk 0:00:41]}  Ng6 {[%clk 0:01:05]} 28. Nd3 {[%clk 0:00:36]}  Bxe4 {[%clk 0:00:56]} 29. Rxe4 {[%clk 0:00:35]}  Rd5 {[%clk 0:00:56]} 30. b4 {[%clk 0:00:14]}  Rbd8 {[%clk 0:00:53]} 31. Rd1 {[%clk 0:00:14]}  Kf5 {[%clk 0:00:36]} 32. f3 {[%clk 0:00:11]}  g4 {[%clk 0:00:33]} 33. Nf2 {[%clk 0:00:10]}  gxf3 {[%clk 0:00:31]} 34. gxf3 {[%clk 0:00:08]}  Rxd1 {[%clk 0:00:28]} 35. Nxd1 {[%clk 0:00:09]}  Nh4 {[%clk 0:00:29]} 36. Rc4 {[%clk 0:00:05]}  Rd7 {[%clk 0:00:26]} 37. Rc5 {[%clk 0:00:01]}  Nxf3 {[%clk 0:00:25]} 38. Nb2 {[%clk 0:00:01]}  Ne1+ {[%clk 0:00:20]} 39. Kb3 {[%clk 0:00:00]}  Nd3 {[%clk 0:00:20]} 0-1


[Site "https://www.chess.com"]

[Event "Titled Tuesday Blitz August 22 Early 2023"]
[White "Cherniaiev, Tykhon"]
[Black "Kuzhilniy, Oleksandr"]
[WhiteFideId "14182360"]
[BlackFideId "34110500"]
[WhiteElo "2794"]
[BlackElo "2617"]
[Result "1-0"]
[Round "5"]
[TimeControl "180+1"]
[Date "2023.08.22"]
[WhiteClock "0:00:06"]
[BlackClock "0:00:01"]
[Board "50"]

1. Nf3 {[%clk 0:03:00]}  Nf6 {[%clk 0:02:59]} 2. d4 {[%clk 0:02:59]}  e6 {[%clk 0:02:58]} 3. c4 {[%clk 0:02:59]}  b6 {[%clk 0:02:55]} 4. g3 {[%clk 0:02:59]}  Bb7 {[%clk 0:02:55]} 5. Bg2 {[%clk 0:03:00]}  Bb4+ {[%clk 0:02:53]} 6. Bd2 {[%clk 0:02:59]}  Bxd2+ {[%clk 0:02:52]} 7. Nbxd2 {[%clk 0:03:00]}  O-O {[%clk 0:02:52]} 8. Qc2 {[%clk 0:03:01]}  c5 {[%clk 0:02:50]} 9. O-O {[%clk 0:03:01]}  cxd4 {[%clk 0:02:50]} 10. Nxd4 {[%clk 0:03:02]}  Bxg2 {[%clk 0:02:50]} 11. Kxg2 {[%clk 0:03:03]}  Qc8 {[%clk 0:02:50]} 12. Rac1 {[%clk 0:03:02]}  d6 {[%clk 0:02:43]} 13. N2f3 {[%clk 0:03:01]}  Nbd7 {[%clk 0:02:39]} 14. Rfd1 {[%clk 0:03:00]}  a6 {[%clk 0:02:39]} 15. a3 {[%clk 0:02:54]}  Rd8 {[%clk 0:02:39]} 16. Nb3 {[%clk 0:02:40]}  Nc5 {[%clk 0:02:19]} 17. Nxc5 {[%clk 0:02:38]}  Qxc5 {[%clk 0:02:19]} 18. b4 {[%clk 0:02:34]}  Qc7 {[%clk 0:02:13]} 19. Qb3 {[%clk 0:02:28]}  Rac8 {[%clk 0:02:11]} 20. Kg1 {[%clk 0:02:15]}  h6 {[%clk 0:02:03]} 21. Nd4 {[%clk 0:02:04]}  Qb7 {[%clk 0:02:01]} 22. b5 {[%clk 0:02:01]}  axb5 {[%clk 0:01:53]} 23. cxb5 {[%clk 0:02:02]}  Rxc1 {[%clk 0:01:26]} 24. Rxc1 {[%clk 0:02:03]}  Nd7 {[%clk 0:01:23]} 25. Nc6 {[%clk 0:02:02]}  Ra8 {[%clk 0:01:19]} 26. Qf3 {[%clk 0:01:58]}  Nc5 {[%clk 0:01:13]} 27. Ne7+ {[%clk 0:01:57]}  Kf8 {[%clk 0:01:06]} 28. Nc6 {[%clk 0:01:39]}  d5 {[%clk 0:00:57]} 29. Qf4 {[%clk 0:01:30]}  Rxa3 {[%clk 0:00:45]} 30. Qd6+ {[%clk 0:01:26]}  Kg8 {[%clk 0:00:44]} 31. Qd8+ {[%clk 0:01:26]}  Kh7 {[%clk 0:00:39]} 32. Qf8 {[%clk 0:00:53]}  Ra8 {[%clk 0:00:34]} 33. Qd6 {[%clk 0:00:52]}  Qd7 {[%clk 0:00:30]} 34. Qf4 {[%clk 0:00:49]}  Ra4 {[%clk 0:00:27]} 35. Qf3 {[%clk 0:00:45]}  f6 {[%clk 0:00:24]} 36. h4 {[%clk 0:00:38]}  e5 {[%clk 0:00:22]} 37. Rd1 {[%clk 0:00:32]}  d4 {[%clk 0:00:18]} 38. h5 {[%clk 0:00:23]}  Qe6 {[%clk 0:00:09]} 39. Rc1 {[%clk 0:00:11]}  Ra2 {[%clk 0:00:09]} 40. Nb4 {[%clk 0:00:10]}  Rb2 {[%clk 0:00:08]} 41. Nd3 {[%clk 0:00:10]}  Nxd3 {[%clk 0:00:07]} 42. Qxd3+ {[%clk 0:00:10]}  f5 {[%clk 0:00:05]} 43. Rc6 {[%clk 0:00:10]}  Qf7 {[%clk 0:00:05]} 44. g4 {[%clk 0:00:08]}  e4 {[%clk 0:00:03]} 45. Qxd4 {[%clk 0:00:09]}  Rb1+ {[%clk 0:00:03]} 46. Kg2 {[%clk 0:00:09]}  Qe7 {[%clk 0:00:01]} 47. Rg6 {[%clk 0:00:06]}  Qg5 {[%clk 0:00:01]} 48. Rxg5 {[%clk 0:00:06]}  hxg5 {[%clk 0:00:01]} 49. gxf5 {[%clk 0:00:06]} 1-0


[Site "https://www.chess.com"]

[Event "Titled Tuesday Blitz August 22 Early 2023"]
[White "Erzhanov, Arman"]
[Black "Adewumi, Tanitoluwa"]
[WhiteFideId "4138821"]
[BlackFideId "30966396"]
[WhiteElo "2616"]
[BlackElo "2792"]
[Result "0-1"]
[Round "5"]
[TimeControl "180+1"]
[Date "2023.08.22"]
[WhiteClock "0:00:02"]
[BlackClock "0:00:04"]
[Board "51"]

1. e4 {[%clk 0:02:59]}  c5 {[%clk 0:02:59]} 2. Nf3 {[%clk 0:02:59]}  e6 {[%clk 0:03:00]} 3. b3 {[%clk 0:02:59]}  a6 {[%clk 0:02:58]} 4. Bb2 {[%clk 0:02:58]}  Nc6 {[%clk 0:02:54]} 5. g3 {[%clk 0:02:58]}  d5 {[%clk 0:02:54]} 6. exd5 {[%clk 0:02:49]}  exd5 {[%clk 0:02:55]} 7. Bg2 {[%clk 0:02:50]}  Nf6 {[%clk 0:02:53]} 8. O-O {[%clk 0:02:50]}  Be7 {[%clk 0:02:53]} 9. d4 {[%clk 0:02:51]}  O-O {[%clk 0:02:52]} 10. dxc5 {[%clk 0:02:51]}  Bxc5 {[%clk 0:02:49]} 11. Nc3 {[%clk 0:02:52]}  Bg4 {[%clk 0:02:47]} 12. h3 {[%clk 0:02:51]}  Bxf3 {[%clk 0:02:45]} 13. Bxf3 {[%clk 0:02:50]}  Qd6 {[%clk 0:02:44]} 14. Kh2 {[%clk 0:02:34]}  Rad8 {[%clk 0:02:42]} 15. Bg2 {[%clk 0:02:33]}  h5 {[%clk 0:02:40]} 16. Na4 {[%clk 0:02:28]}  Ba7 {[%clk 0:02:34]} 17. Bxf6 {[%clk 0:02:28]}  Qxf6 {[%clk 0:02:32]} 18. Qf3 {[%clk 0:01:45]}  Qxf3 {[%clk 0:02:01]} 19. Bxf3 {[%clk 0:01:46]}  b5 {[%clk 0:01:55]} 20. Nb2 {[%clk 0:01:40]}  g6 {[%clk 0:01:41]} 21. Nd3 {[%clk 0:01:39]}  Nd4 {[%clk 0:01:38]} 22. Bd1 {[%clk 0:01:38]}  Rc8 {[%clk 0:01:35]} 23. Rc1 {[%clk 0:01:25]}  Rc3 {[%clk 0:01:28]} 24. Nf4 {[%clk 0:01:10]}  Rd8 {[%clk 0:01:19]} 25. Ne2 {[%clk 0:01:10]}  Rc7 {[%clk 0:01:09]} 26. Nxd4 {[%clk 0:00:50]}  Bxd4 {[%clk 0:01:10]} 27. Bf3 {[%clk 0:00:41]}  Bb2 {[%clk 0:01:04]} 28. Rcd1 {[%clk 0:00:40]}  Rxc2 {[%clk 0:01:00]} 29. Rxd5 {[%clk 0:00:40]}  Rxd5 {[%clk 0:01:00]} 30. Bxd5 {[%clk 0:00:41]}  Bd4 {[%clk 0:01:00]} 31. a4 {[%clk 0:00:39]}  Bxf2 {[%clk 0:00:58]} 32. axb5 {[%clk 0:00:22]}  axb5 {[%clk 0:00:56]} 33. Kg2 {[%clk 0:00:17]}  Bc5+ {[%clk 0:00:56]} 34. Kh1 {[%clk 0:00:17]}  Bf2 {[%clk 0:00:42]} 35. Kg2 {[%clk 0:00:14]}  Be1+ {[%clk 0:00:41]} 36. Kf3 {[%clk 0:00:12]}  Rc3+ {[%clk 0:00:41]} 37. Ke2 {[%clk 0:00:08]}  Bxg3 {[%clk 0:00:42]} 38. Rxf7 {[%clk 0:00:08]}  Kh8 {[%clk 0:00:40]} 39. Rf8+ {[%clk 0:00:08]}  Kg7 {[%clk 0:00:40]} 40. Rf7+ {[%clk 0:00:09]}  Kh6 {[%clk 0:00:40]} 41. Rf3 {[%clk 0:00:08]}  Rc5 {[%clk 0:00:29]} 42. Bf7 {[%clk 0:00:04]}  Be5 {[%clk 0:00:28]} 43. Re3 {[%clk 0:00:04]}  Kg7 {[%clk 0:00:20]} 44. Be6 {[%clk 0:00:03]}  Kf6 {[%clk 0:00:20]} 45. Bg8 {[%clk 0:00:04]}  g5 {[%clk 0:00:19]} 46. Kf3 {[%clk 0:00:04]}  Bf4 {[%clk 0:00:12]} 47. Rd3 {[%clk 0:00:04]}  Ke5 {[%clk 0:00:12]} 48. Rd8 {[%clk 0:00:03]}  Rc3+ {[%clk 0:00:11]} 49. Kg2 {[%clk 0:00:03]}  Rg3+ {[%clk 0:00:12]} 50. Kf2 {[%clk 0:00:02]}  Rxh3 {[%clk 0:00:12]} 51. Re8+ {[%clk 0:00:03]}  Kf6 {[%clk 0:00:11]} 52. Rf8+ {[%clk 0:00:02]}  Ke5 {[%clk 0:00:09]} 53. Rc8 {[%clk 0:00:03]}  b4 {[%clk 0:00:07]} 54. Rc5+ {[%clk 0:00:03]}  Kd6 {[%clk 0:00:06]} 55. Rc4 {[%clk 0:00:02]}  Rh2+ {[%clk 0:00:02]} 56. Kg1 {[%clk 0:00:02]}  Rd2 {[%clk 0:00:02]} 57. Rxb4 {[%clk 0:00:02]}  Ke5 {[%clk 0:00:02]} 58. Rb5+ {[%clk 0:00:02]}  Ke4 {[%clk 0:00:03]} 59. Bh7+ {[%clk 0:00:02]}  Kf3 {[%clk 0:00:03]} 60. Bg6 {[%clk 0:00:02]}  Rd1# {[%clk 0:00:04]} 0-1


[Site "https://www.chess.com"]

[Event "Titled Tuesday Blitz August 22 Early 2023"]
[White "Materia, Marco"]
[Black "Arat, Ufuk Sezen"]
[WhiteFideId "45150451"]
[BlackFideId "6309089"]
[WhiteElo "2791"]
[BlackElo "2615"]
[Result "1/2-1/2"]
[Round "5"]
[TimeControl "180+1"]
[Date "2023.08.22"]
[WhiteClock "0:00:28"]
[BlackClock "0:00:27"]
[Board "52"]

1. d4 {[%clk 0:03:00]}  Nf6 {[%clk 0:02:58]} 2. c4 {[%clk 0:03:01]}  e6 {[%clk 0:02:58]} 3. Nf3 {[%clk 0:03:01]}  b6 {[%clk 0:02:58]} 4. g3 {[%clk 0:03:01]}  Bb7 {[%clk 0:02:59]} 5. Bg2 {[%clk 0:03:01]}  Be7 {[%clk 0:02:59]} 6. O-O {[%clk 0:03:02]}  O-O {[%clk 0:03:00]} 7. Re1 {[%clk 0:03:02]}  d5 {[%clk 0:03:00]} 8. cxd5 {[%clk 0:03:01]}  exd5 {[%clk 0:03:00]} 9. Nc3 {[%clk 0:03:02]}  Nbd7 {[%clk 0:03:00]} 10. Qc2 {[%clk 0:02:57]}  c5 {[%clk 0:03:00]} 11. Bf4 {[%clk 0:02:56]}  Rc8 {[%clk 0:03:00]} 12. Rad1 {[%clk 0:02:55]}  Re8 {[%clk 0:02:56]} 13. e3 {[%clk 0:02:52]}  Ne4 {[%clk 0:02:49]} 14. Ne5 {[%clk 0:02:43]}  Nxc3 {[%clk 0:02:49]} 15. bxc3 {[%clk 0:02:23]}  cxd4 {[%clk 0:02:45]} 16. exd4 {[%clk 0:02:17]}  Bb4 {[%clk 0:02:33]} 17. Nxf7 {[%clk 0:01:41]}  Kxf7 {[%clk 0:01:40]} 18. Qf5+ {[%clk 0:01:41]}  Nf6 {[%clk 0:01:36]} 19. cxb4 {[%clk 0:01:40]}  g6 {[%clk 0:01:34]} 20. Qh3 {[%clk 0:01:36]}  h5 {[%clk 0:01:32]} 21. Bg5 {[%clk 0:01:31]}  Qd6 {[%clk 0:01:32]} 22. Bxf6 {[%clk 0:01:30]}  Kxf6 {[%clk 0:01:26]} 23. a3 {[%clk 0:01:26]}  Kg7 {[%clk 0:01:24]} 24. Qh4 {[%clk 0:01:23]}  Ba6 {[%clk 0:01:20]} 25. Qg5 {[%clk 0:01:19]}  Be2 {[%clk 0:01:15]} 26. Rc1 {[%clk 0:01:13]}  Bc4 {[%clk 0:01:12]} 27. Re5 {[%clk 0:01:10]}  Rxe5 {[%clk 0:01:10]} 28. dxe5 {[%clk 0:01:10]}  Qe6 {[%clk 0:01:10]} 29. Qe3 {[%clk 0:01:06]}  Rd8 {[%clk 0:01:08]} 30. Rd1 {[%clk 0:01:05]}  Re8 {[%clk 0:01:05]} 31. f4 {[%clk 0:01:03]}  h4 {[%clk 0:01:06]} 32. Kf2 {[%clk 0:00:59]}  g5 {[%clk 0:01:03]} 33. Qd4 {[%clk 0:00:54]}  Rf8 {[%clk 0:00:59]} 34. Bxd5 {[%clk 0:00:53]}  hxg3+ {[%clk 0:00:57]} 35. hxg3 {[%clk 0:00:51]}  Bxd5 {[%clk 0:00:55]} 36. Qxd5 {[%clk 0:00:52]}  Qxd5 {[%clk 0:00:47]} 37. Rxd5 {[%clk 0:00:52]}  gxf4 {[%clk 0:00:48]} 38. g4 {[%clk 0:00:51]}  Kg6 {[%clk 0:00:45]} 39. Kf3 {[%clk 0:00:51]}  Rc8 {[%clk 0:00:42]} 40. Kxf4 {[%clk 0:00:46]}  Rc4+ {[%clk 0:00:42]} 41. Kf3 {[%clk 0:00:46]}  Kg5 {[%clk 0:00:41]} 42. e6+ {[%clk 0:00:45]}  Kf6 {[%clk 0:00:41]} 43. Rd7 {[%clk 0:00:44]}  Rc3+ {[%clk 0:00:41]} 44. Kf4 {[%clk 0:00:43]}  Rc4+ {[%clk 0:00:40]} 45. Kg3 {[%clk 0:00:44]}  Rc3+ {[%clk 0:00:40]} 46. Kh4 {[%clk 0:00:45]}  Rxa3 {[%clk 0:00:37]} 47. e7 {[%clk 0:00:45]}  Kf7 {[%clk 0:00:37]} 48. g5 {[%clk 0:00:41]}  Ke8 {[%clk 0:00:37]} 49. Rb7 {[%clk 0:00:40]}  Rb3 {[%clk 0:00:34]} 50. g6 {[%clk 0:00:40]}  Rxb4+ {[%clk 0:00:34]} 51. Kg5 {[%clk 0:00:40]}  Rb1 {[%clk 0:00:31]} 52. Rb8+ {[%clk 0:00:39]}  Kxe7 {[%clk 0:00:29]} 53. Rb7+ {[%clk 0:00:34]}  Kf8 {[%clk 0:00:25]} 54. Rxa7 {[%clk 0:00:29]}  Rg1+ {[%clk 0:00:26]} 55. Kf6 {[%clk 0:00:27]}  Rf1+ {[%clk 0:00:26]} 56. Ke6 {[%clk 0:00:28]}  Re1+ {[%clk 0:00:26]} 57. Kd5 {[%clk 0:00:25]}  Rg1 {[%clk 0:00:26]} 58. g7+ {[%clk 0:00:26]}  Rxg7 {[%clk 0:00:26]} 59. Rxg7 {[%clk 0:00:26]}  Kxg7 {[%clk 0:00:26]} 60. Kc6 {[%clk 0:00:27]}  Kf6 {[%clk 0:00:27]} 61. Kxb6 {[%clk 0:00:28]} 1/2-1/2


[Site "https://www.chess.com"]

[Event "Titled Tuesday Blitz August 22 Early 2023"]
[White "Krzyzanowski, Marcin"]
[Black "Borgaonkar Akshay"]
[WhiteFideId "1132199"]
[BlackFideId "25639110"]
[WhiteElo "2781"]
[BlackElo "2600"]
[Result "1-0"]
[Round "5"]
[TimeControl "180+1"]
[Date "2023.08.22"]
[WhiteClock "0:00:20"]
[BlackClock "0:00:01"]
[Board "53"]

1. e4 {[%clk 0:02:58]}  g6 {[%clk 0:02:55]} 2. d4 {[%clk 0:02:57]}  Bg7 {[%clk 0:02:56]} 3. Nc3 {[%clk 0:02:56]}  c6 {[%clk 0:02:56]} 4. Nf3 {[%clk 0:02:51]}  d5 {[%clk 0:02:57]} 5. h3 {[%clk 0:02:52]}  dxe4 {[%clk 0:02:57]} 6. Nxe4 {[%clk 0:02:53]}  Nf6 {[%clk 0:02:57]} 7. Nxf6+ {[%clk 0:02:52]}  exf6 {[%clk 0:02:58]} 8. Bc4 {[%clk 0:02:49]}  O-O {[%clk 0:02:57]} 9. O-O {[%clk 0:02:50]}  Re8 {[%clk 0:02:55]} 10. c3 {[%clk 0:02:45]}  Be6 {[%clk 0:02:55]} 11. Bxe6 {[%clk 0:02:34]}  Rxe6 {[%clk 0:02:55]} 12. Bf4 {[%clk 0:02:35]}  Nd7 {[%clk 0:02:54]} 13. d5 {[%clk 0:02:30]}  cxd5 {[%clk 0:02:47]} 14. Qxd5 {[%clk 0:02:29]}  Ne5 {[%clk 0:02:47]} 15. Qxd8+ {[%clk 0:02:23]}  Rxd8 {[%clk 0:02:47]} 16. Nd4 {[%clk 0:02:21]}  Red6 {[%clk 0:02:42]} 17. Rad1 {[%clk 0:02:13]}  Rd5 {[%clk 0:02:40]} 18. b3 {[%clk 0:01:48]}  f5 {[%clk 0:02:39]} 19. Bg5 {[%clk 0:01:39]}  R8d7 {[%clk 0:02:37]} 20. Rfe1 {[%clk 0:01:36]}  h6 {[%clk 0:02:35]} 21. Be3 {[%clk 0:01:34]}  Nc6 {[%clk 0:02:32]} 22. Rd2 {[%clk 0:01:22]}  Nxd4 {[%clk 0:02:28]} 23. cxd4 {[%clk 0:01:21]}  g5 {[%clk 0:02:23]} 24. g3 {[%clk 0:01:13]}  Bf6 {[%clk 0:02:19]} 25. Kg2 {[%clk 0:01:12]}  Kg7 {[%clk 0:02:15]} 26. Rc1 {[%clk 0:01:12]}  Kg6 {[%clk 0:02:12]} 27. Rc4 {[%clk 0:01:09]}  b5 {[%clk 0:02:04]} 28. Rc6 {[%clk 0:01:09]}  Kg7 {[%clk 0:01:55]} 29. Ra6 {[%clk 0:01:09]}  Bd8 {[%clk 0:01:48]} 30. Rc6 {[%clk 0:00:56]}  Bb6 {[%clk 0:01:46]} 31. Kf3 {[%clk 0:00:52]}  f6 {[%clk 0:01:32]} 32. Re2 {[%clk 0:00:47]}  Kg6 {[%clk 0:01:26]} 33. h4 {[%clk 0:00:43]}  Rd8 {[%clk 0:01:02]} 34. Re1 {[%clk 0:00:37]}  R8d7 {[%clk 0:00:58]} 35. h5+ {[%clk 0:00:31]}  Kf7 {[%clk 0:00:55]} 36. Re2 {[%clk 0:00:31]}  Re7 {[%clk 0:00:54]} 37. Rec2 {[%clk 0:00:28]}  Bxd4 {[%clk 0:00:49]} 38. Rd2 {[%clk 0:00:22]}  Red7 {[%clk 0:00:29]} 39. Rxd4 {[%clk 0:00:21]}  Rxd4 {[%clk 0:00:29]} 40. Bxd4 {[%clk 0:00:22]}  Rxd4 {[%clk 0:00:30]} 41. Rc7+ {[%clk 0:00:22]}  Kg8 {[%clk 0:00:22]} 42. Rxa7 {[%clk 0:00:23]}  Rd2 {[%clk 0:00:21]} 43. Ra5 {[%clk 0:00:20]}  Kf7 {[%clk 0:00:19]} 44. Rxb5 {[%clk 0:00:20]}  Rxa2 {[%clk 0:00:17]} 45. Rxf5 {[%clk 0:00:20]}  Ke6 {[%clk 0:00:18]} 46. Rb5 {[%clk 0:00:21]}  Rb2 {[%clk 0:00:17]} 47. g4 {[%clk 0:00:21]}  Rc2 {[%clk 0:00:17]} 48. Rb7 {[%clk 0:00:20]}  Rc3+ {[%clk 0:00:12]} 49. Ke4 {[%clk 0:00:21]}  Rc2 {[%clk 0:00:10]} 50. f3 {[%clk 0:00:21]}  Re2+ {[%clk 0:00:10]} 51. Kd3 {[%clk 0:00:21]}  Rf2 {[%clk 0:00:10]} 52. Ke3 {[%clk 0:00:21]}  Rc2 {[%clk 0:00:10]} 53. b4 {[%clk 0:00:21]}  Rc3+ {[%clk 0:00:10]} 54. Ke2 {[%clk 0:00:21]}  Ke5 {[%clk 0:00:08]} 55. Rb5+ {[%clk 0:00:20]}  Ke6 {[%clk 0:00:07]} 56. Rf5 {[%clk 0:00:20]}  Rb3 {[%clk 0:00:07]} 57. b5 {[%clk 0:00:21]}  Kf7 {[%clk 0:00:08]} 58. Kd2 {[%clk 0:00:21]}  Ke6 {[%clk 0:00:07]} 59. Kc2 {[%clk 0:00:21]}  Rb4 {[%clk 0:00:07]} 60. Kc3 {[%clk 0:00:22]}  Rb1 {[%clk 0:00:07]} 61. Kc4 {[%clk 0:00:22]}  Ke7 {[%clk 0:00:05]} 62. Kc5 {[%clk 0:00:22]}  Ke6 {[%clk 0:00:05]} 63. Kc6 {[%clk 0:00:22]}  Rc1+ {[%clk 0:00:05]} 64. Rc5 {[%clk 0:00:19]}  Rf1 {[%clk 0:00:04]} 65. b6 {[%clk 0:00:19]}  Rxf3 {[%clk 0:00:03]} 66. b7 {[%clk 0:00:19]}  Rb3 {[%clk 0:00:03]} 67. Rb5 {[%clk 0:00:19]}  Rc3+ {[%clk 0:00:01]} 68. Kb6 {[%clk 0:00:20]} 1-0


[Site "https://www.chess.com"]